fUST/lending_fUST_20240415
["ID","MTS","AMOUNT","RATE_DAILY","PERIOD"]
[322606130,1713117046370,-205.44456814,0.00038356,7]
[322606131,1713117046380,-596.73991927,0.00038356,7]
[322606133,1713117046389,-500.0,0.00038356,7]
[322606135,1713117046398,-500.0,0.00038356,7]
[322606137,1713117046410,-500.0,0.00038356,7]
[322606140,1713117046419,-502.19876948,0.00038356,7]
[322606143,1713117046430,-500.0,0.00038356,7]
[322606146,1713117046439,-500.0,0.00038356,7]
[322606148,1713117046448,-500.0,0.00038356,7]
[322606151,1713117046458,-500.0,0.00038356,7]
[322606154,1713117046467,-568.19478049,0.00038356,7]
[322606157,1713117046476,-500.0,0.00038356,7]
[322606159,1713117046486,-500.0,0.00038356,7]
[322606161,1713117046496,-500.0,0.00038356,7]
[322606163,1713117046505,-502.29009757,0.00038356,7]
[322606165,1713117046514,-500.0,0.00038356,7]
[322606167,1713117046523,-500.0,0.00038356,7]
[322606169,1713117046531,-500.0,0.00038356,7]
[322606170,1713117046540,-500.0,0.00038356,7]
[322606172,1713117046549,-500.0,0.00038356,7]
[322606174,1713117046559,-500.0,0.00038356,7]
[322606176,1713117046568,-500.0,0.00038356,7]
[322606178,1713117046578,-500.0,0.00038356,7]
[322606180,1713117046587,-500.0,0.00038356,7]
[322606182,1713117046597,-500.0,0.00038356,7]
[322606183,1713117046606,-547.64,0.00038356,7]
[322606184,1713117046616,-501.16674857,0.00038356,7]
[322606185,1713117046625,-555.97,0.00038356,7]
[322606186,1713117046635,-500.0,0.00038356,7]
[322606187,1713117046645,-500.0,0.00038356,7]
[322606188,1713117046654,-502.52188567,0.00038356,7]
[322606189,1713117046663,-500.0,0.00038356,7]
[322606190,1713117046672,-500.0,0.00038356,7]
[322606191,1713117046681,-500.0,0.00038356,7]
[322606192,1713117046690,-500.0,0.00038356,7]
[322606193,1713117046700,-500.0,0.00038356,7]
[322606194,1713117046709,-500.0,0.00038356,7]
[322606195,1713117046718,-500.0,0.00038356,7]
[322606196,1713117046727,-500.0,0.00038356,7]
[322606197,1713117046739,-500.0,0.00038356,7]
[322606198,1713117046748,-500.0,0.00038356,7]
[322606199,1713117046758,-500.0,0.00038356,7]
[322606200,1713117046767,-642.54892262,0.00038356,7]
[322606201,1713117046776,-500.0,0.00038356,7]
[322606202,1713117046785,-500.0,0.00038356,7]
[322606203,1713117046795,-500.0,0.00038356,7]
[322606204,1713117046804,-500.0,0.00038356,7]
[322606205,1713117046813,-611.65,0.00038356,7]
[322606206,1713117046822,-500.0,0.00038356,7]
[322606207,1713117046831,-500.0,0.00038356,7]
[322606208,1713117046841,-500.0,0.00038356,7]
[322606209,1713117046850,-503.84959192,0.00038356,7]
[322606210,1713117046859,-500.0,0.00038356,7]
[322606211,1713117046868,-427.9815095,0.00038356,7]
[322606212,1713117046878,-685.31,0.00038356,7]
[322606213,1713117046887,-500.0,0.00038356,7]
[322606214,1713117046896,-500.0,0.00038356,7]
[322606215,1713117046905,-500.0,0.00038356,7]
[322606216,1713117046915,-294.89169021,0.00038356,7]
[322606217,1713117046924,-983.69,0.00038356,7]
[322606218,1713117046933,-791.0,0.00038356,7]
[322606219,1713117046942,-500.0,0.00038356,7]
[322606220,1713117046951,-500.0,0.00038356,7]
[322606221,1713117046960,-576.1266157,0.00038356,7]
[322606222,1713117046970,-500.0,0.00038356,7]
[322606223,1713117046979,-500.0,0.00038356,7]
[322606224,1713117046993,-613.81,0.00038356,7]
[322606225,1713117047002,-500.0,0.00038356,7]
[322606226,1713117047010,-500.0,0.00038356,7]
[322606227,1713117047020,-500.0,0.00038356,7]
[322606228,1713117047030,-500.0,0.00038356,7]
[322606229,1713117047040,-15765.89,0.00038356,7]
[322606230,1713117047050,-500.0,0.00038356,7]
[322606231,1713117047060,-1537.73,0.00038356,7]
[322606232,1713117047069,-175.93295565,0.00038356,7]
[322606233,1713117047079,-500.0,0.00038356,7]
[322606234,1713117047089,-500.0,0.00038356,7]
[322606235,1713117047099,-6127.42,0.00038356,7]
[322606236,1713117047109,-3629.98,0.00038356,7]
[322606237,1713117047118,-588.29,0.00038356,7]
[322606238,1713117047128,-491.0833904,0.00038356,7]
[322606239,1713117047137,-500.0,0.00038356,7]
[322606240,1713117047147,-500.0,0.00038356,7]
[322606241,1713117047157,-500.0,0.00038356,7]
[322606242,1713117047167,-764.98,0.00038356,7]
[322606243,1713117047177,-1983.51,0.00038356,7]
[322606244,1713117047186,-500.0,0.00038356,7]
[322606245,1713117047195,-500.0,0.00038356,7]
[322606246,1713117047205,-3136.4,0.00038356,7]
[322606247,1713117047214,-500.0,0.00038356,7]
[322606248,1713117047223,-525.07,0.00038356,7]
[322606249,1713117047232,-500.0,0.00038356,7]
[322606250,1713117047247,-500.0,0.00038356,7]
[322606251,1713117047256,-500.0,0.00038356,7]
[322606252,1713117047266,-2442.88,0.00038356,7]
[322606253,1713117047275,-500.0,0.00038356,7]
[322606254,1713117047286,-500.0,0.00038356,7]
[322606255,1713117047296,-2151.88,0.00038356,7]
[322606256,1713117047305,-1039.11,0.00038356,7]
[322606257,1713117047315,-500.0,0.00038356,7]
[322606258,1713117047324,-500.0,0.00038356,7]
[322606259,1713117047334,-1649.79,0.00038356,7]
[322606260,1713117047343,-2786.32,0.00038356,7]
[322606261,1713117047353,-942.68,0.00038356,7]
[322606262,1713117047363,-543.17911472,0.00038356,7]
[322606263,1713117047372,-687.16,0.00038356,7]
[322606264,1713117047382,-500.0,0.00038356,7]
[322606265,1713117047391,-1457.44,0.00038356,7]
[322606266,1713117047400,-500.0,0.00038356,7]
[322606267,1713117047413,-500.0,0.00038356,7]
[322606268,1713117047422,-2719.08,0.00038356,7]
[322606269,1713117047431,-44425.84,0.00038356,7]
[322606270,1713117047440,-686.78,0.00038356,7]
[322606271,1713117047451,-739.25,0.00038356,7]
[322606272,1713117047460,-1823.58,0.00038356,7]
[322606273,1713117047469,-500.0,0.00038356,7]
[322606274,1713117047479,-500.0,0.00038356,7]
[322606275,1713117047496,-500.0,0.00038356,7]
[322606276,1713117047507,-4897.93,0.00038356,7]
[322606277,1713117047516,-500.0,0.00038356,7]
[322606278,1713117047525,-617.22,0.00038356,7]
[322606279,1713117047534,-500.0,0.00038356,7]
[322606280,1713117047543,-849.92,0.00038356,7]
[322606281,1713117047555,-12739.57,0.00038356,7]
[322606282,1713117047564,-500.0,0.00038356,7]
[322606283,1713117047574,-985.54,0.00038356,7]
[322606284,1713117047584,-500.0,0.00038356,7]
[322606285,1713117047593,-695.9,0.00038356,7]
[322606286,1713117047603,-500.0,0.00038356,7]
[322606287,1713117047612,-500.0,0.00038356,7]
[322606288,1713117047621,-500.0,0.00038356,7]
[322606289,1713117047630,-500.0,0.00038356,7]
[322606290,1713117047639,-3051.96,0.00038356,7]
[322606291,1713117047649,-932.13,0.00038356,7]
[322606292,1713117047659,-673.94,0.00038356,7]
[322606293,1713117047668,-4157.37,0.00038356,7]
[322606294,1713117047677,-8346.64,0.00038356,7]
[322606295,1713117047686,-500.0,0.00038356,7]
[322606296,1713117047695,-22893.12,0.00038356,7]
[322606297,1713117047703,-335.6644,0.00038356,2]
[322606298,1713117047712,-2246.57,0.00038356,7]
[322606299,1713117047722,-558.56,0.00038356,7]
[322606300,1713117047730,-2386.99,0.00038356,7]
[322606301,1713117047743,-1876.03,0.00038356,7]
[322606302,1713117047752,-500.0,0.00038356,7]
[322606303,1713117047761,-500.0,0.00038356,2]
[322606304,1713117047770,-1233.62,0.00038356,7]
[322606305,1713117047779,-500.0,0.00038356,7]
[322606306,1713117047788,-500.0,0.00038356,7]
[322606307,1713117047797,-758.68,0.00038356,7]
[322606308,1713117047806,-500.0,0.00038356,7]
[322606309,1713117047815,-500.0,0.00038356,7]
[322606310,1713117047824,-500.0,0.00038356,7]
[322606311,1713117047833,-400.0,0.00038356,2]
[322606312,1713117047842,-936.28028027,0.0003841,4]
[322606313,1713117047851,-163.00101128,0.00038411,15]
[322606314,1713117047860,-33278.5747,0.00038413,30]
[322606315,1713117047869,-1629.10457416,0.0003853,2]
[322606316,1713117047878,-500.0,0.00038629,7]
[322606317,1713117047886,-514.23645862,0.00038629,7]
[322606318,1713117047895,-1699.62,0.0003863,7]
[322606319,1713117047904,-500.0,0.0003863,7]
[322606320,1713117047914,-500.0,0.0003863,7]
[322606321,1713117047923,-501.1960688,0.0003863,7]
[322606322,1713117047932,-504.10938534,0.0003863,7]
[322606323,1713117047942,-500.0,0.0003863,7]
[322606324,1713117047952,-500.0,0.0003863,7]
[322606325,1713117047962,-500.0,0.0003863,7]
[322606326,1713117047971,-500.0,0.0003863,7]
[322606327,1713117047981,-500.0,0.0003863,7]
[322606328,1713117047994,-500.0,0.0003863,7]
[322606329,1713117048004,-500.0,0.0003863,7]
[322606330,1713117048013,-500.0,0.0003863,7]
[322606331,1713117048023,-500.0,0.0003863,7]
[322606332,1713117048032,-500.0,0.0003863,7]
[322606333,1713117048041,-500.0,0.0003863,7]
[322606334,1713117048050,-500.0,0.0003863,7]
[322606335,1713117048059,-500.0,0.0003863,7]
[322606336,1713117048069,-500.0,0.0003863,7]
[322606337,1713117048078,-500.0,0.0003863,7]
[322606338,1713117048087,-500.0,0.0003863,7]
[322606339,1713117048096,-500.0,0.0003863,7]
[322606340,1713117048105,-500.0,0.0003863,7]
[322606341,1713117048114,-500.0,0.0003863,7]
[322606342,1713117048124,-500.0,0.0003863,7]
[322606343,1713117048133,-1921.78,0.0003863,7]
[322606344,1713117048142,-503.8085504,0.0003863,7]
[322606345,1713117048152,-500.0,0.0003863,7]
[322606346,1713117048278,-500.0,0.0003863,7]
[322606347,1713117048288,-1497.5,0.0003863,7]
[322606348,1713117048297,-500.0,0.0003863,7]
[322606349,1713117048307,-500.0,0.0003863,7]
[322606350,1713117048316,-500.0,0.0003863,7]
[322606351,1713117048326,-500.0,0.0003863,7]
[322606352,1713117048335,-500.0,0.0003863,7]
[322606353,1713117048344,-500.0,0.0003863,7]
[322606354,1713117048353,-536.93162064,0.0003863,7]
[322606355,1713117048363,-500.0,0.0003863,7]
[322606356,1713117048372,-383.92602193,0.0003863,7]
[322606357,1713117048382,-500.0,0.0003863,7]
[322606358,1713117048391,-500.0,0.0003863,7]
[322606359,1713117048400,-500.0,0.0003863,7]
[322606360,1713117048411,-500.0,0.0003863,7]
[322606361,1713117048420,-569.88,0.0003863,7]
[322606362,1713117048433,-500.0,0.0003863,7]
[322606363,1713117048442,-500.0,0.0003863,7]
[322606364,1713117048453,-584.02,0.0003863,7]
[322606365,1713117048462,-500.0,0.0003863,7]
[322606366,1713117048471,-500.0,0.0003863,7]
[322606367,1713117048481,-500.0,0.0003863,7]
[322606368,1713117048494,-500.0,0.0003863,7]
[322606369,1713117048503,-502.3342643,0.0003863,7]
[322606370,1713117048512,-500.0,0.0003863,7]
[322606371,1713117048521,-500.0,0.0003863,7]
[322606372,1713117048530,-500.0,0.0003863,7]
[322606373,1713117048539,-502.42849543,0.0003863,7]
[322606374,1713117048549,-519.11964552,0.0003863,7]
[322606375,1713117048558,-500.0,0.0003863,7]
[322606376,1713117048568,-500.0,0.0003863,7]
[322606377,1713117048577,-500.0,0.0003863,7]
[322606378,1713117048586,-500.0,0.0003863,7]
[322606379,1713117048595,-500.0,0.0003863,7]
[322606380,1713117048604,-500.0,0.0003863,7]
[322606381,1713117048614,-500.0,0.0003863,7]
[322606382,1713117048623,-500.0,0.0003863,7]
[322606383,1713117048633,-500.0,0.0003863,7]
[322606384,1713117048642,-500.0,0.0003863,7]
[322606385,1713117048651,-500.0,0.0003863,7]
[322606386,1713117048660,-500.0,0.0003863,7]
[322606387,1713117048670,-500.0,0.0003863,7]
[322606388,1713117048679,-500.0,0.0003863,7]
[322606389,1713117048688,-500.0,0.0003863,7]
[322606390,1713117048697,-500.0,0.0003863,7]
[322606391,1713117048706,-500.0,0.0003863,7]
[322606392,1713117048715,-500.0,0.0003863,7]
[322606393,1713117048725,-500.0,0.0003863,7]
[322606394,1713117048737,-500.0,0.0003863,7]
[322606395,1713117048750,-501.14421717,0.0003863,7]
[322606396,1713117048759,-500.0,0.0003863,7]
[322606397,1713117048768,-264.82,0.0003863,7]
[322606398,1713117048778,-500.0,0.0003863,7]
[322606399,1713117048786,-500.0,0.0003863,7]
[322606400,1713117048796,-500.0,0.0003863,7]
[322606401,1713117048805,-500.0,0.0003863,7]
[322606402,1713117048814,-500.0,0.0003863,7]
[322606403,1713117048823,-500.0,0.0003863,7]
[322606404,1713117048832,-500.0,0.0003863,7]
[322606405,1713117048841,-500.0,0.0003863,7]
[322606406,1713117048850,-500.0,0.0003863,7]
[322606407,1713117048859,-500.0,0.0003863,7]
[322606408,1713117048869,-500.0,0.0003863,7]
[322606409,1713117048878,-500.0,0.0003863,7]
[322606410,1713117048886,-547.64,0.0003863,7]
[322606411,1713117048895,-555.97,0.0003863,7]
[322606412,1713117048904,-500.0,0.0003863,7]
[322606413,1713117048914,-500.0,0.0003863,7]
[322606415,1713117048923,-500.0,0.0003863,7]
[322606417,1713117048932,-500.0,0.0003863,7]
[322606419,1713117048941,-500.0,0.0003863,7]
[322606421,1713117048951,-500.0,0.0003863,7]
[322606423,1713117048959,-500.0,0.0003863,7]
[322606425,1713117048968,-500.0,0.0003863,7]
[322606426,1713117048977,-500.0,0.0003863,7]
[322606427,1713117048990,-500.0,0.0003863,7]
[322606428,1713117049000,-500.0,0.0003863,7]
[322606429,1713117049009,-500.0,0.0003863,7]
[322606430,1713117049018,-500.0,0.0003863,7]
[322606431,1713117049027,-500.0,0.0003863,7]
[322606432,1713117049036,-500.0,0.0003863,7]
[322606433,1713117049044,-500.0,0.0003863,7]
[322606434,1713117049054,-611.65,0.0003863,7]
[322606435,1713117049063,-156.48,0.0003863,7]
[322606436,1713117049072,-310.11710721,0.0003863,7]
[322606437,1713117049081,-500.0,0.0003863,7]
[322606438,1713117049090,-500.0,0.0003863,7]
[322606439,1713117049100,-685.31,0.0003863,7]
[322606440,1713117049109,-500.0,0.0003863,7]
[322606441,1713117049118,-500.0,0.0003863,7]
[322606442,1713117049127,-983.69,0.0003863,7]
[322606443,1713117049136,-791.0,0.0003863,7]
[322606444,1713117049146,-500.0,0.0003863,7]
[322606446,1713117049155,-500.0,0.0003863,7]
[322606447,1713117049164,-500.0,0.0003863,7]
[322606448,1713117049173,-500.0,0.0003863,7]
[322606449,1713117049182,-613.81,0.0003863,7]
[322606450,1713117049191,-500.0,0.0003863,7]
[322606451,1713117049200,-500.0,0.0003863,7]
[322606452,1713117049209,-500.0,0.0003863,7]
[322606453,1713117049218,-500.0,0.0003863,7]
[322606454,1713117049228,-15765.89,0.0003863,7]
[322606455,1713117049240,-500.0,0.0003863,7]
[322606456,1713117049249,-1537.73,0.0003863,7]
[322606457,1713117049258,-500.0,0.0003863,7]
[322606458,1713117049267,-500.0,0.0003863,7]
[322606459,1713117049277,-6127.42,0.0003863,7]
[322606460,1713117049286,-3629.98,0.0003863,7]
[322606461,1713117049295,-588.29,0.0003863,7]
[322606462,1713117049304,-222.52657971,0.0003863,7]
[322606463,1713117049313,-500.0,0.0003863,7]
[322606464,1713117049323,-500.0,0.0003863,7]
[322606465,1713117049332,-764.98,0.0003863,7]
[322606466,1713117049342,-1983.51,0.0003863,7]
[322606467,1713117049351,-500.0,0.0003863,7]
[322606468,1713117049360,-500.0,0.0003863,7]
[322606469,1713117049369,-3136.4,0.0003863,7]
[322606470,1713117049378,-500.0,0.0003863,7]
[322606471,1713117049387,-525.07,0.0003863,7]
[322606472,1713117049396,-500.0,0.0003863,7]
[322606473,1713117049409,-500.0,0.0003863,7]
[322606474,1713117049418,-500.0,0.0003863,7]
[322606475,1713117049426,-2442.88,0.0003863,7]
[322606477,1713117049436,-500.0,0.0003863,7]
[322606478,1713117049446,-500.0,0.0003863,7]
[322606479,1713117049456,-2151.88,0.0003863,7]
[322606480,1713117049465,-1039.11,0.0003863,7]
[322606481,1713117049476,-292.13415104,0.0003863,7]
[322606482,1713117049488,-500.0,0.0003863,7]
[322606483,1713117049503,-1649.79,0.0003863,7]
[322606484,1713117049514,-2786.32,0.0003863,7]
[322606485,1713117049524,-942.68,0.0003863,7]
[322606486,1713117049535,-687.16,0.0003863,7]
[322606487,1713117049546,-500.0,0.0003863,7]
[322606488,1713117049557,-1457.44,0.0003863,7]
[322606489,1713117049567,-500.0,0.0003863,7]
[322606490,1713117049578,-500.0,0.0003863,7]
[322606491,1713117049590,-2719.08,0.0003863,7]
[322606492,1713117049601,-44425.84,0.0003863,7]
[322606493,1713117049612,-686.78,0.0003863,7]
[322606494,1713117049622,-739.25,0.0003863,7]
[322606495,1713117049632,-1823.58,0.0003863,7]
[322606496,1713117049643,-500.0,0.0003863,7]
[322606497,1713117049654,-500.0,0.0003863,7]
[322606498,1713117049664,-500.0,0.0003863,7]
[322606499,1713117049681,-4897.93,0.0003863,7]
[322606500,1713117049692,-500.0,0.0003863,7]
[322606501,1713117049702,-617.22,0.0003863,7]
[322606502,1713117049713,-500.0,0.0003863,7]
[322606503,1713117049724,-849.92,0.0003863,7]
[322606504,1713117049739,-12739.57,0.0003863,7]
[322606505,1713117049751,-500.0,0.0003863,7]
[322606506,1713117049761,-985.54,0.0003863,7]
[322606507,1713117049772,-500.0,0.0003863,7]
[322606508,1713117049782,-695.9,0.0003863,7]
[322606509,1713117049792,-500.0,0.0003863,7]
[322606510,1713117049801,-500.0,0.0003863,7]
[322606511,1713117049811,-500.0,0.0003863,7]
[322606512,1713117049821,-3051.96,0.0003863,7]
[322606513,1713117049830,-932.13,0.0003863,7]
[322606514,1713117049839,-673.94,0.0003863,7]
[322606515,1713117049848,-4157.37,0.0003863,7]
[322606516,1713117049858,-8346.64,0.0003863,7]
[322606517,1713117049867,-500.0,0.0003863,7]
[322606518,1713117049876,-5642.44101331,0.0003863,7]
[322606520,1713117387511,222933.13143744,0.00042012,30]
[322606553,1713118034126,-277.38744536,0.0002498,2]
[322606554,1713118034145,-304.17480318,0.00024981,2]
[322606555,1713118034164,-473.75008714,0.00024982,2]
[322606556,1713118034186,-500.0,0.00024982,2]
[322606557,1713118034205,-599.73705095,0.00025,2]
[322606558,1713118034225,-160.398316,0.00027397,2]
[322606559,1713118034243,-269.97409335,0.00036,2]
[322606560,1713118034263,-303.068109,0.00036642,120]
[322606561,1713118034283,-693.39301403,0.0003797,4]
[322606562,1713118034302,-2000.0,0.00038256,2]
[322606563,1713118034321,-155.32262521,0.00038354,4]
[322606564,1713118034341,-601.81614276,0.00038354,4]
[322606565,1713118034361,-193.14313214,0.00038354,4]
[322606566,1713118034381,-300.0,0.00038354,3]
[322606567,1713118034401,-300.0,0.00038354,5]
[322606568,1713118034420,-2375.37052674,0.00038355,4]
[322606569,1713118034446,-1182.87215117,0.00038356,5]
[322606570,1713118034470,-500.0,0.00038356,7]
[322606571,1713118034489,-1557.99,0.00038356,7]
[322606572,1713118034509,-500.0,0.00038356,7]
[322606573,1713118034528,-500.0,0.00038356,7]
[322606574,1713118034548,-1372.71,0.00038356,7]
[322606575,1713118034572,-500.0,0.00038356,7]
[322606576,1713118034592,-500.0,0.00038356,7]
[322606577,1713118034611,-500.0,0.00038356,7]
[322606578,1713118034630,-500.0,0.00038356,7]
[322606579,1713118034650,-500.0,0.00038356,7]
[322606580,1713118034669,-500.0,0.00038356,7]
[322606582,1713118034691,-647.6944343,0.00038356,7]
[322606583,1713118034711,-500.0,0.00038356,7]
[322606584,1713118034734,-198.47820871,0.00038356,7]
[322606585,1713118034754,-500.0,0.00038356,7]
[322606586,1713118034773,-500.0,0.00038356,7]
[322606587,1713118034795,-500.0,0.00038356,7]
[322606588,1713118034815,-500.0,0.00038356,7]
[322606589,1713118034834,-522.5565693,0.00038356,7]
[322606590,1713118034853,-500.0,0.00038356,7]
[322606591,1713118034874,-500.0,0.00038356,7]
[322606592,1713118034895,-500.0,0.00038356,7]
[322606593,1713118034915,-500.0,0.00038356,7]
[322606594,1713118034935,-500.0,0.00038356,7]
[322606595,1713118034955,-522.39,0.00038356,7]
[322606596,1713118034974,-500.0,0.00038356,7]
[322606597,1713118034993,-535.35,0.00038356,7]
[322606598,1713118035013,-500.0,0.00038356,7]
[322606599,1713118035033,-500.0,0.00038356,7]
[322606600,1713118035053,-500.0,0.00038356,7]
[322606601,1713118035073,-595.25244842,0.00038356,7]
[322606602,1713118035092,-500.0,0.00038356,7]
[322606603,1713118035112,-500.0,0.00038356,7]
[322606604,1713118035132,-500.0,0.00038356,7]
[322606605,1713118035283,-1335.99,0.00038356,7]
[322606606,1713118035303,-236.94,0.00038356,7]
[322606607,1713118035323,-500.0,0.00038356,7]
[322606608,1713118035342,-500.0,0.00038356,7]
[322606609,1713118035362,-1761.63,0.00038356,7]
[322606610,1713118035383,-500.0,0.00038356,7]
[322606611,1713118035403,-500.0,0.00038356,7]
[322606612,1713118035424,-500.0,0.00038356,7]
[322606613,1713118035447,-779.09,0.00038356,7]
[322606614,1713118035467,-500.0,0.00038356,7]
[322606615,1713118035487,-500.0,0.00038356,7]
[322606616,1713118035506,-500.0,0.00038356,7]
[322606617,1713118035526,-903.41,0.00038356,7]
[322606618,1713118035545,-500.0,0.00038356,7]
[322606619,1713118035564,-500.0,0.00038356,7]
[322606620,1713118035583,-854.45,0.00038356,7]
[322606621,1713118035603,-617.78,0.00038356,7]
[322606622,1713118035623,-500.0,0.00038356,7]
[322606623,1713118035644,-500.0,0.00038356,7]
[322606624,1713118035664,-535.29,0.00038356,7]
[322606625,1713118035686,-500.0,0.00038356,7]
[322606626,1713118035711,-500.0,0.00038356,7]
[322606627,1713118035731,-500.0,0.00038356,7]
[322606628,1713118035751,-549.83822899,0.00038356,7]
[322606629,1713118035770,-500.0,0.00038356,7]
[322606630,1713118035790,-500.0,0.00038356,7]
[322606631,1713118035810,-500.0,0.00038356,7]
[322606632,1713118035829,-500.0,0.00038356,7]
[322606633,1713118035848,-500.0,0.00038356,7]
[322606634,1713118035869,-252.85215354,0.00038356,7]
[322606635,1713118035890,-500.0,0.00038356,7]
[322606636,1713118035909,-500.0,0.00038356,7]
[322606637,1713118035928,-500.0,0.00038356,7]
[322606638,1713118035952,-500.0,0.00038356,7]
[322606639,1713118035971,-500.0,0.00038356,7]
[322606640,1713118035991,-313.92283683,0.00038356,7]
[322606641,1713118036011,-502.01,0.00038356,7]
[322606642,1713118036030,-500.0,0.00038356,2]
[322606643,1713118036051,-500.0,0.00038356,7]
[322606644,1713118036072,-500.0,0.00038356,7]
[322606645,1713118036093,-500.0,0.00038356,7]
[322606646,1713118036113,-500.0,0.00038356,7]
[322606647,1713118036133,-500.0,0.00038356,7]
[322606648,1713118036153,-500.0,0.00038356,7]
[322606649,1713118036173,-400.0,0.00038356,7]
[322606650,1713118036200,-100.83194859,0.00038356,7]
[322606651,1713118037149,-399.16805141,0.00038356,7]
[322606652,1713118037169,-500.0,0.00038356,7]
[322606653,1713118037192,-500.0,0.00038356,7]
[322606654,1713118037211,-500.0,0.00038356,7]
[322606655,1713118037230,-500.0,0.00038356,7]
[322606656,1713118037249,-500.0,0.00038356,7]
[322606657,1713118037268,-552.7091046,0.00038356,7]
[322606658,1713118037288,-628.21,0.00038356,7]
[322606659,1713118037307,-500.0,0.00038356,7]
[322606660,1713118037327,-500.0,0.00038356,7]
[322606661,1713118037347,-1409.58,0.00038356,7]
[322606662,1713118037366,-521.05110417,0.00038356,7]
[322606663,1713118037386,-509.38530171,0.00038356,7]
[322606664,1713118037406,-3210.47349811,0.00038356,7]
[322606850,1713118240087,-500.0,0.00034999,2]
[322606852,1713118240102,-10230.57706,0.00035,4]
[322606854,1713118240124,-2497.85535955,0.00035,4]
[322606856,1713118240134,-227.301081,0.00037629,120]
[322606858,1713118240145,-2000.0,0.00038256,2]
[322606859,1713118240156,-500.0,0.00038356,7]
[322606860,1713118240165,-500.0,0.00038356,7]
[322606861,1713118240175,-500.0,0.00038356,7]
[322606862,1713118240185,-500.0,0.00038356,7]
[322606863,1713118240195,-500.0,0.00038356,7]
[322606864,1713118240204,-500.0,0.00038356,7]
[322606865,1713118240214,-500.0,0.00038356,7]
[322606866,1713118240223,-500.0,0.00038356,7]
[322606868,1713118240232,-500.0,0.00038356,7]
[322606869,1713118240241,-500.0,0.00038356,7]
[322606870,1713118240250,-500.0,0.00038356,7]
[322606871,1713118240259,-500.0,0.00038356,7]
[322606872,1713118240268,-500.0,0.00038356,7]
[322606880,1713118240425,-500.0,0.00038356,7]
[322606882,1713118240435,-500.0,0.00038356,7]
[322606884,1713118240444,-324.80434445,0.00038356,7]
[322606886,1713118240453,-629.54,0.00038356,7]
[322606888,1713118240462,-500.0,0.00038356,7]
[322606890,1713118240470,-500.0,0.00038356,7]
[322606892,1713118240479,-500.0,0.00038356,7]
[322606894,1713118240489,-514.94946323,0.00038356,7]
[322606897,1713118240498,-562.66,0.00038356,7]
[322606899,1713118240507,-500.0,0.00038356,7]
[322606900,1713118240516,-5616.81,0.00038356,7]
[322606902,1713118240525,-597.6012476,0.00038356,7]
[322606904,1713118240534,-539.26,0.00038356,7]
[322606906,1713118240543,-901.71,0.00038356,7]
[322606908,1713118240552,-492.91050974,0.00038356,7]
[322606910,1713118240560,-500.0,0.00038356,7]
[322606912,1713118240573,-1818.22,0.00038356,7]